fUSD/lending_fUSD_20250313
["ID","MTS","AMOUNT","RATE_DAILY","PERIOD"]
[356115888,1741909971696,-575.02,0.00026411,3]
[356115889,1741909971705,-580.51172853,0.00026411,3]
[356115890,1741909971714,-500.0,0.00026411,3]
[356115891,1741909971724,-500.0,0.00026411,3]
[356115892,1741909971733,-500.0,0.00026411,3]
[356115893,1741909971742,-500.0,0.00026411,3]
[356115894,1741909971751,-614.09,0.00026411,3]
[356115895,1741909971760,-1905.32,0.00026411,3]
[356115896,1741909971770,-500.0,0.00026411,3]
[356115897,1741909971779,-500.0,0.00026411,3]
[356115898,1741909971792,-505.01,0.00026411,3]
[356115899,1741909971801,-500.0,0.00026411,3]
[356115900,1741909971811,-1834.44,0.00026411,3]
[356115901,1741909971824,-500.0,0.00026411,3]
[356115902,1741909971834,-1115.1,0.00026411,3]
[356115903,1741909971844,-500.0,0.00026411,3]
[356115904,1741909971853,-1673.6,0.00026411,3]
[356115905,1741909971863,-1557.42,0.00026411,3]
[356115906,1741909971872,-512.73,0.00026411,3]
[356115907,1741909971882,-808.39,0.00026411,3]
[356115908,1741909971891,-500.0,0.00026411,3]
[356115909,1741909971900,-500.0,0.00026411,3]
[356115910,1741909971910,-500.0,0.00026411,3]
[356115911,1741909971919,-500.0,0.00026411,3]
[356115912,1741909971928,-1409.73,0.00026411,3]
[356115913,1741909971937,-586.53,0.00026411,3]
[356115914,1741909971946,-649.95,0.00026411,3]
[356115915,1741909971956,-500.0,0.00026411,3]
[356115916,1741909971966,-708.03,0.00026411,3]
[356115917,1741909971975,-500.0,0.00026412,3]
[356115918,1741909971984,-539.69696607,0.00026412,3]
[356115919,1741909971995,-500.0,0.00026412,3]
[356115920,1741909972004,-500.0,0.00026412,3]
[356115921,1741909972014,-500.0,0.00026412,3]
[356115922,1741909972024,-500.0,0.00026412,3]
[356115923,1741909972033,-500.0,0.00026412,3]
[356115924,1741909972043,-500.0,0.00026412,3]
[356115925,1741909972052,-218.60999959,0.00026412,3]
[356115926,1741909972061,-500.0,0.00026412,3]
[356115927,1741909972070,-500.0,0.00026412,3]
[356115928,1741909972079,-500.0,0.00026412,3]
[356115929,1741909972089,-500.0,0.00026412,3]
[356115930,1741909972098,-500.0,0.00026412,3]
[356115931,1741909972108,-500.0,0.00026412,3]
[356115932,1741909972117,-879.64,0.00026412,3]
[356115933,1741909972126,-500.0,0.00026412,3]
[356115934,1741909972135,-500.0,0.00026412,3]
[356115935,1741909972146,-535.9,0.00026412,3]
[356115936,1741909972156,-621.59,0.00026412,3]
[356115937,1741909972165,-548.81,0.00026412,3]
[356115938,1741909972176,-157.85695625,0.00026412,3]
[356115939,1741909972186,-4044.81,0.00026412,3]
[356115940,1741909972195,-500.0,0.00026412,3]
[356115941,1741909972204,-500.0,0.00026412,3]
[356115942,1741909972213,-261.66733131,0.00026412,3]
[356115943,1741909972223,-1007.44,0.00026412,3]
[356115944,1741909972232,-500.0,0.00026412,3]
[356115945,1741909972242,-500.0,0.00026412,3]
[356115946,1741909972251,-1472.58,0.00026412,3]
[356115947,1741909972260,-501.15265856,0.00026412,3]
[356115948,1741909972270,-500.0,0.00026412,3]
[356115949,1741909972279,-1336.48,0.00026412,3]
[356115950,1741909972288,-454.18752421,0.00026412,3]
[356115951,1741909972297,-1207.46,0.00026412,3]
[356115952,1741909972307,-1240.71,0.00026412,3]
[356115953,1741909972316,-500.0,0.00026412,3]
[356115954,1741909972325,-1560.68,0.00026412,3]
[356115955,1741909972334,-500.0,0.00026412,3]
[356115956,1741909972344,-500.0,0.00026412,3]
[356115957,1741909972353,-500.0,0.00026412,3]
[356115958,1741909972362,-1715.23,0.00026412,3]
[356115959,1741909972371,-500.0,0.00026412,3]
[356115960,1741909972380,-500.0,0.00026412,3]
[356115961,1741909972390,-500.0,0.00026412,3]
[356115962,1741909972399,-500.0,0.00026412,3]
[356115963,1741909972409,-500.0,0.00026412,3]
[356115964,1741909972418,-866.31,0.00026412,3]
[356115965,1741909972427,-528.68,0.00026412,3]
[356115966,1741909972436,-637.69598373,0.00026412,3]
[356115967,1741909972446,-500.0,0.00026412,3]
[356115968,1741909972455,-1282.18,0.00026412,3]
[356115969,1741909972465,-500.0,0.00026412,3]
[356115970,1741909972477,-521.16,0.00026412,3]
[356115971,1741909972487,-1671.92,0.00026412,3]
[356115972,1741909972496,-500.0,0.00026412,3]
[356115973,1741909972506,-1037.45,0.00026412,3]
[356115974,1741909972515,-630.13,0.00026412,3]
[356115975,1741909972525,-570.0,0.00026412,3]
[356115976,1741909972534,-500.0,0.00026412,3]
[356115977,1741909972543,-500.0,0.00026412,3]
[356115978,1741909972552,-500.0,0.00026412,3]
[356115979,1741909972562,-500.0,0.00026412,3]
[356115980,1741909972572,-774.3,0.00026412,3]
[356115981,1741909972581,-1515.34,0.00026412,3]
[356115982,1741909972591,-929.37,0.00026412,3]
[356115983,1741909972600,-870.82,0.00026412,3]
[356115984,1741909972609,-592.52,0.00026412,3]
[356115985,1741909972618,-531.66,0.00026412,3]
[356115986,1741909972627,-3057.44,0.00026413,3]
[356115987,1741909972637,-500.0,0.00026413,3]
[356115988,1741909972646,-500.0,0.00026413,3]
[356115989,1741909972655,-500.0,0.00026413,3]
[356115990,1741909972665,-500.0,0.00026413,3]
[356115991,1741909972674,-500.0,0.00026413,3]
[356115992,1741909972683,-500.0,0.00026413,3]
[356115993,1741909972693,-627.17,0.00026413,3]
[356115994,1741909972702,-515.44,0.00026413,3]
[356115995,1741909972711,-500.0,0.00026413,3]
[356115996,1741909972721,-500.0,0.00026413,3]
[356115997,1741909972731,-909.42,0.00026413,3]
[356115998,1741909972740,-500.0,0.00026413,3]
[356115999,1741909972749,-767.58,0.00026413,3]
[356116000,1741909972758,-500.0,0.00026413,3]
[356116001,1741909972767,-500.0,0.00026413,3]
[356116002,1741909972776,-605.42,0.00026413,3]
[356116003,1741909972786,-500.0,0.00026413,3]
[356116004,1741909972795,-500.0,0.00026413,3]
[356116005,1741909972804,-500.0,0.00026413,3]
[356116006,1741909972813,-670.75,0.00026413,3]
[356116007,1741909972824,-500.0,0.00026413,3]
[356116008,1741909972833,-500.0,0.00026413,3]
[356116009,1741909972843,-500.0,0.00026413,3]
[356116010,1741909972852,-500.0,0.00026413,3]
[356116011,1741909972863,-500.0,0.00026413,3]
[356116012,1741909972872,-500.0,0.00026413,3]
[356116013,1741909972882,-500.0,0.00026413,3]
[356116014,1741909972891,-500.0,0.00026413,3]
[356116015,1741909972902,-500.0,0.00026413,3]
[356116016,1741909972911,-1567.35,0.00026413,3]
[356116017,1741909972920,-567.1104732,0.00026413,3]
[356116018,1741909972930,-500.0,0.00026413,3]
[356116019,1741909972939,-500.0,0.00026413,3]
[356116020,1741909972948,-387.98164318,0.00026413,3]
[356116021,1741909972958,-500.0,0.00026413,3]
[356116022,1741909972967,-644.21,0.00026413,3]
[356116023,1741909972978,-500.0,0.00026413,3]
[356116024,1741909972988,-1664.02,0.00026413,3]
[356116025,1741909972998,-552.98779122,0.00026413,3]
[356116026,1741909973008,-500.0,0.00026413,3]
[356116027,1741909973018,-500.0,0.00026413,3]
[356116028,1741909973028,-548.26892812,0.00026413,3]
[356116029,1741909973038,-500.0,0.00026413,3]
[356116030,1741909973047,-500.0,0.00026413,3]
[356116031,1741909973057,-968.14,0.00026413,3]
[356116032,1741909973067,-1046.93,0.00026413,3]
[356116033,1741909973076,-773.75,0.00026413,3]
[356116034,1741909973086,-500.0,0.00026413,3]
[356116035,1741909973095,-500.0,0.00026413,3]
[356116036,1741909973106,-500.0,0.00026413,3]
[356116037,1741909973115,-500.0,0.00026413,3]
[356116038,1741909973125,-500.0,0.00026413,3]
[356116039,1741909973134,-500.0,0.00026413,3]
[356116040,1741909973144,-293.0031694,0.00026413,3]
[356116041,1741909973154,-500.0,0.00026413,3]
[356116042,1741909973164,-798.27,0.00026413,3]
[356116043,1741909973173,-500.0,0.00026413,3]
[356116044,1741909973183,-680.76,0.00026413,3]
[356116045,1741909973192,-500.0,0.00026413,3]
[356116046,1741909973202,-500.0,0.00026413,3]
[356116047,1741909973212,-500.0,0.00026413,3]
[356116048,1741909973223,-500.0,0.00026413,3]
[356116049,1741909973232,-500.0,0.00026413,3]
[356116050,1741909973242,-500.0,0.00026413,3]
[356116051,1741909973252,-537.8340983,0.00026413,3]
[356116052,1741909973262,-121.56835805,0.00026413,3]
[356116053,1741909974185,-500.0,0.00025273,3]
[356116054,1741909974196,-550.90649173,0.00025301,3]
[356116055,1741909974207,-1136.63,0.00025573,3]
[356116056,1741909974218,-1136.63,0.00025601,3]
[356116057,1741909974228,-1076.88,0.00025602,3]
[356116058,1741909974238,-666.39,0.00025628,3]
[356116059,1741909974248,-1136.86143734,0.00025628,3]
[356116060,1741909974258,-1076.88,0.00025629,3]
[356116061,1741909974269,-666.39555062,0.00025655,3]
[356116062,1741909974278,-1182.75306186,0.00025656,3]
[356116063,1741909974288,-1077.1,0.00025656,3]
[356116064,1741909974299,-500.0,0.00026275,3]
[356116065,1741909974309,-500.0,0.00026303,3]
[356116066,1741909974319,-500.0,0.00026331,3]
[356116067,1741909974330,-1302.76164195,0.00026413,3]
[356116068,1741909974340,-500.0,0.00026413,3]
[356116069,1741909974350,-500.0,0.00026413,3]
[356116070,1741909974360,-500.0,0.00026413,3]
[356116071,1741909974370,-500.0,0.00026413,3]
[356116072,1741909974381,-500.0,0.00026413,3]
[356116073,1741909974391,-550.26,0.00026413,3]
[356116074,1741909974401,-500.0,0.00026413,3]
[356116075,1741909974412,-500.0,0.00026413,3]
[356116076,1741909974423,-500.0,0.00026413,3]
[356116077,1741909974432,-748.01,0.00026413,3]
[356116078,1741909974442,-500.0,0.00026413,3]
[356116079,1741909974452,-500.0,0.00026413,3]
[356116080,1741909974463,-854.97,0.00026413,3]
[356116081,1741909974475,-500.0,0.00026413,3]
[356116082,1741909974486,-1135.48,0.00026413,3]
[356116083,1741909974497,-500.0,0.00026413,3]
[356116084,1741909974507,-1460.13,0.00026413,3]
[356116085,1741909974518,-578.56662253,0.00026413,3]
[356116086,1741909974528,-500.0,0.00026413,3]
[356116087,1741909974538,-500.0,0.00026413,3]
[356116088,1741909974549,-500.0,0.00026413,3]
[356116089,1741909974559,-500.0,0.00026413,3]
[356116090,1741909974569,-539.91,0.00026413,3]
[356116091,1741909974579,-500.0,0.00026413,3]
[356116092,1741909974590,-500.0,0.00026413,3]
[356116093,1741909974963,-500.0,0.00026413,3]
[356116094,1741909974974,-500.0,0.00026413,3]
[356116095,1741909974984,-500.0,0.00026413,3]
[356116096,1741909974994,-500.0,0.00026413,3]
[356116097,1741909975004,-1590.08,0.00026413,3]
[356116098,1741909975014,-500.0,0.00026413,3]
[356116099,1741909975024,-500.0,0.00026413,3]
[356116100,1741909975034,-521.95,0.00026413,3]
[356116101,1741909975044,-1077.24,0.00026413,3]
[356116102,1741909975054,-500.0,0.00026413,3]
[356116103,1741909975064,-1570.33,0.00026413,3]
[356116104,1741909975074,-500.0,0.00026413,3]
[356116105,1741909975084,-500.0,0.00026413,3]
[356116106,1741909975094,-500.0,0.00026413,3]
[356116107,1741909975104,-500.0,0.00026413,3]
[356116108,1741909975114,-500.0,0.00026413,3]
[356116109,1741909975124,-1757.22,0.00026413,3]
[356116110,1741909975134,-500.0,0.00026413,3]
[356116111,1741909975144,-500.0,0.00026413,3]
[356116112,1741909975154,-500.0,0.00026413,3]
[356116113,1741909975164,-1801.77,0.00026413,3]
[356116114,1741909975173,-500.0,0.00026413,3]
[356116115,1741909975183,-500.0,0.00026413,3]
[356116116,1741909975193,-500.0,0.00026413,3]
[356116117,1741909975202,-1126.34,0.00026413,3]
[356116118,1741909975212,-501.8,0.00026413,3]
[356116119,1741909975222,-500.0,0.00026413,3]
[356116120,1741909975231,-775.14,0.00026413,3]
[356116121,1741909975241,-1962.2,0.00026413,3]
[356116122,1741909975250,-500.0,0.00026413,3]
[356116123,1741909975260,-552.00924573,0.00026413,3]
[356116124,1741909975271,-500.0,0.00026413,3]
[356116125,1741909975280,-552.77,0.00026413,3]
[356116126,1741909975290,-559.49307723,0.00026413,3]
[356116127,1741909975299,-500.0,0.00026413,3]
[356116128,1741909975309,-1313.89,0.00026413,3]
[356116129,1741909975318,-500.0,0.00026413,3]
[356116130,1741909975328,-500.0,0.00026413,3]
[356116131,1741909975337,-500.0,0.00026413,3]
[356116132,1741909975347,-500.0,0.00026413,3]
[356116133,1741909975356,-500.0,0.00026413,3]
[356116134,1741909975365,-544.97867772,0.00026413,3]
[356116135,1741909975375,-500.0,0.00026413,3]
[356116136,1741909975384,-500.0,0.00026413,3]
[356116137,1741909975393,-1156.75,0.00026413,3]
[356116138,1741909975402,-500.0,0.00026413,3]
[356116139,1741909975411,-500.0,0.00026413,3]
[356116140,1741909975420,-500.0,0.00026413,3]
[356116141,1741909975430,-827.88,0.00026413,3]
[356116142,1741909975439,-500.0,0.00026413,3]
[356116143,1741909975449,-500.0,0.00026413,3]
[356116144,1741909975458,-500.0,0.00026413,3]
[356116145,1741909975470,-500.0,0.00026413,3]
[356116146,1741909975479,-895.24,0.00026413,3]
[356116147,1741909975489,-500.0,0.00026413,3]
[356116148,1741909975498,-500.0,0.00026413,3]
[356116149,1741909975507,-1012.87,0.00026413,3]
[356116150,1741909975519,-1069.23,0.00026413,3]
[356116151,1741909975528,-605.55,0.00026413,3]
[356116152,1741909975537,-500.0,0.00026413,3]
[356116153,1741909975549,-1008.81,0.00026413,3]
[356116154,1741909975559,-866.31,0.00026413,3]
[356116155,1741909975568,-500.0,0.00026413,3]
[356116156,1741909975577,-500.0,0.00026413,3]
[356116157,1741909975587,-500.0,0.00026413,3]
[356116158,1741909975596,-521.61957893,0.00026413,3]
[356116159,1741909975605,-545.23191,0.00026421,7]
[356116160,1741909975614,-545.23191,0.00026421,7]
[356116161,1741909975623,-156.262202,0.00026421,7]
[356116162,1741909975633,-156.262202,0.00026421,7]
[356116163,1741909975642,-239.016,0.00026421,7]
[356116164,1741909975651,-239.016,0.00026421,7]
[356116165,1741909975661,-1354.05,0.00026422,3]
[356116166,1741909975670,-500.0,0.00026422,3]
[356116167,1741909975679,-500.0,0.00026422,3]
[356116168,1741909975688,-500.0,0.00026422,3]
[356116169,1741909975698,-500.0,0.00026422,3]
[356116170,1741909975707,-500.0,0.00026422,3]
[356116171,1741909975716,-500.0,0.00026422,3]
[356116172,1741909975726,-500.0,0.00026422,3]
[356116173,1741909975737,-500.0,0.00026422,3]
[356116174,1741909975746,-527.55,0.00026422,3]
[356116175,1741909975755,-500.0,0.00026422,3]
[356116176,1741909975765,-500.0,0.00026422,3]
[356116177,1741909975775,-500.0,0.00026422,3]
[356116178,1741909975784,-862.02,0.00026422,3]
[356116179,1741909975794,-538.4157547,0.00026422,3]
[356116180,1741909975803,-500.0,0.00026422,3]
[356116181,1741909975812,-1562.75,0.00026422,3]
[356116182,1741909975822,-500.0,0.00026422,3]
[356116183,1741909975832,-500.0,0.00026422,3]
[356116184,1741909975841,-500.0,0.00026422,3]
[356116185,1741909975851,-500.0,0.00026422,3]
[356116186,1741909975861,-500.0,0.00026422,3]
[356116187,1741909975871,-500.0,0.00026422,3]
[356116188,1741909975880,-500.0,0.00026422,3]
[356116189,1741909975890,-500.0,0.00026422,3]
[356116190,1741909975900,-500.0,0.00026422,3]
[356116191,1741909975910,-500.0,0.00026422,3]
[356116192,1741909975919,-526.4,0.00026422,3]
[356116193,1741909975929,-500.0,0.00026422,3]
[356116194,1741909975939,-886.28,0.00026422,3]
[356116195,1741909975948,-500.0,0.00026422,3]
[356116196,1741909975958,-500.0,0.00026422,3]
[356116197,1741909975967,-522.91294698,0.00026422,3]
[356116198,1741909975976,-500.0,0.00026422,3]
[356116199,1741909975987,-500.0,0.00026422,3]
[356116200,1741909975996,-1148.96,0.00026422,3]
[356116201,1741909976005,-500.0,0.00026422,3]
[356116202,1741909976015,-500.0,0.00026422,3]
[356116203,1741909976025,-521.42,0.00026422,3]
[356116204,1741909976034,-500.0,0.00026422,3]
[356116205,1741909976043,-500.0,0.00026422,3]
[356116206,1741909976053,-500.0,0.00026422,3]
[356116207,1741909976063,-535.24,0.00026422,3]
[356116208,1741909976072,-506.93225933,0.00026422,3]
[356116209,1741909976085,-500.0,0.00026422,3]
[356116210,1741909976095,-500.0,0.00026422,3]
[356116211,1741909976104,-500.0,0.00026422,3]
[356116212,1741909976114,-500.0,0.00026422,3]
[356116213,1741909976124,-500.0,0.00026422,3]
[356116214,1741909976134,-500.0,0.00026422,3]
[356116215,1741909976144,-630.29,0.00026422,3]
[356116216,1741909976154,-500.55567713,0.00026422,3]
[356116217,1741909976163,-500.0,0.00026422,3]
[356116218,1741909976173,-636.65,0.00026422,3]
[356116219,1741909976183,-500.0,0.00026422,3]
[356116220,1741909976193,-760.49,0.00026422,3]
[356116221,1741909976203,-500.0,0.00026422,3]
[356116222,1741909976212,-500.0,0.00026422,3]
[356116223,1741909976222,-766.74,0.00026422,3]
[356116224,1741909976231,-500.0,0.00026422,3]
[356116225,1741909976241,-500.0,0.00026422,3]
[356116226,1741909976251,-1057.73,0.00026422,3]
[356116227,1741909976261,-500.0,0.00026422,3]
[356116228,1741909976271,-500.0,0.00026422,3]
[356116229,1741909976281,-760.28,0.00026422,3]
[356116230,1741909976292,-515.93445235,0.00026422,3]
[356116231,1741909976302,-972.22,0.00026422,3]
[356116232,1741909976312,-500.0,0.00026422,3]
[356116233,1741909976322,-1260.65,0.00026422,3]
[356116234,1741909976332,-500.0,0.00026422,3]
[356116235,1741909976342,-500.0,0.00026422,3]
[356116236,1741909976352,-500.0,0.00026422,3]
[356116237,1741909976362,-606.38846413,0.00026422,3]
[356116238,1741909976371,-500.0,0.00026422,3]
[356116239,1741909976381,-500.0,0.00026422,3]
[356116240,1741909976391,-702.58,0.00026422,3]
[356116241,1741909976401,-500.0,0.00026422,3]
[356116242,1741909976411,-500.0,0.00026422,3]
[356116243,1741909976420,-500.0,0.00026422,3]
[356116244,1741909976430,-500.0,0.00026422,3]
[356116245,1741909976440,-556.69,0.00026422,3]
[356116246,1741909976450,-500.0,0.00026422,3]
[356116247,1741909976459,-1075.01,0.00026422,3]
[356116248,1741909976472,-500.0,0.00026422,3]
[356116249,1741909976481,-500.0,0.00026422,3]
[356116250,1741909976491,-2046.3,0.00026422,3]
[356116251,1741909976501,-500.0,0.00026422,3]
[356116252,1741909976511,-522.54543641,0.00026422,3]
[356116253,1741909976520,-500.0,0.00026422,3]
[356116254,1741909976530,-500.0,0.00026422,3]
[356116255,1741909976539,-500.0,0.00026422,3]
[356116256,1741909976549,-500.0,0.00026422,3]
[356116257,1741909976559,-574.02,0.00026422,3]
[356116258,1741909976568,-500.0,0.00026422,3]
[356116259,1741909976578,-1112.24,0.00026422,3]
[356116260,1741909976587,-500.0,0.00026422,3]
[356116261,1741909976597,-566.64,0.00026422,3]
[356116262,1741909976607,-500.0,0.00026422,3]
[356116263,1741909976616,-500.0,0.00026422,3]
[356116264,1741909976625,-500.0,0.00026422,3]
[356116265,1741909976635,-500.0,0.00026422,3]
[356116266,1741909976645,-1293.55,0.00026422,3]
[356116267,1741909976655,-2132.45,0.00026422,3]
[356116268,1741909976665,-500.0,0.00026422,3]
[356116269,1741909976674,-513.14036624,0.00026422,3]
[356116270,1741909976683,-500.0,0.00026422,3]
[356116271,1741909976693,-500.0,0.00026422,3]
[356116272,1741909976702,-500.0,0.00026422,3]
[356116273,1741909976712,-500.0,0.00026422,3]
[356116274,1741909976722,-452.78,0.00026422,3]
[356116275,1741909976732,-500.0,0.00026422,3]
[356116276,1741909976742,-500.0,0.00026422,3]
[356116277,1741909976751,-500.0,0.00026422,3]
[356116278,1741909976761,-1111.12,0.00026422,3]
[356116279,1741909976771,-500.0,0.00026422,3]
[356116280,1741909976781,-539.33134798,0.00026422,3]
[356116281,1741909976791,-1817.19,0.00026422,3]
[356116282,1741909976801,-639.93,0.00026422,3]
[356116283,1741909976810,-530.54112181,0.00026422,3]
[356116284,1741909976820,-500.0,0.00026422,3]
[356116285,1741909976830,-500.0,0.00026422,3]
[356116286,1741909976840,-500.0,0.00026422,3]
[356116287,1741909976850,-500.0,0.00026422,3]
[356116288,1741909976861,-345.0243877,0.00026422,3]
[356116289,1741909976871,-525.47,0.00026422,3]
[356116290,1741909976880,-805.69,0.00026422,3]
[356116291,1741909976890,-500.0,0.00026422,3]
[356116292,1741909976900,-1134.12,0.00026422,3]
[356116293,1741909976909,-500.0,0.00026422,3]
[356116294,1741909976919,-500.0,0.00026422,3]
[356116295,1741909976928,-500.0,0.00026422,3]
[356116296,1741909976937,-1845.17,0.00026422,3]
[356116297,1741909976947,-510.53308249,0.00026422,3]
[356116298,1741909976956,-500.0,0.00026422,3]
[356116299,1741909976965,-279.63696365,0.00026422,3]
[356116300,1741909976975,-500.0,0.00026422,3]
[356116301,1741909976984,-503.52890392,0.00026422,3]
[356116302,1741909976994,-500.0,0.00026422,3]
[356116303,1741909977004,-835.91,0.00026422,3]
[356116304,1741909977013,-1243.4,0.00026423,3]
[356116305,1741909977023,-4021.1,0.00026423,3]
[356116306,1741909977034,-1149.36,0.00026423,3]
[356116307,1741909977044,-686.34,0.00026423,3]
[356116308,1741909977054,-1365.3,0.00026423,3]
[356116309,1741909977063,-500.0,0.00026423,3]
[356116310,1741909977073,-658.04,0.00026423,3]
[356116311,1741909977083,-1356.05,0.00026423,3]
[356116312,1741909977093,-530.22,0.00026423,3]
[356116313,1741909977102,-517.5,0.00026423,3]
[356116314,1741909977113,-500.0,0.00026423,3]
[356116315,1741909977123,-1735.89,0.00026423,3]
[356116316,1741909977133,-718.97,0.00026431,3]
[356116317,1741909977143,-500.0,0.00026439,3]
[356116318,1741909977153,-500.0,0.00026439,3]
[356116319,1741909977162,-500.0,0.00026439,3]
[356116320,1741909977172,-500.0,0.00026439,3]
[356116321,1741909977181,-257.94336295,0.00026439,3]
[356116322,1741909977191,-500.0,0.00026439,3]
[356116323,1741909977201,-500.0,0.00026439,3]
[356116324,1741909977211,-500.0,0.00026439,3]
[356116325,1741909977220,-500.0,0.00026439,3]
[356116326,1741909977230,-500.0,0.00026439,3]
[356116327,1741909977239,-500.0,0.00026439,3]
[356116328,1741909977248,-642.16896516,0.00026439,3]
[356116329,1741909977258,-551.39657763,0.00026439,3]
[356116330,1741909977268,-879.64,0.00026439,3]
[356116331,1741909977385,-500.0,0.00026439,3]
[356116332,1741909977394,-500.0,0.00026439,3]
[356116333,1741909977404,-535.9,0.00026439,3]
[356116334,1741909977415,-621.59,0.00026439,3]
[356116335,1741909977424,-548.81,0.00026439,3]
[356116336,1741909977434,-4044.81,0.00026439,3]
[356116337,1741909977444,-619.96,0.00026439,3]
[356116338,1741909977453,-500.0,0.00026439,3]
[356116339,1741909977463,-599.39,0.00026439,3]
[356116340,1741909977475,-1580.05,0.00026439,3]
[356116341,1741909977484,-500.0,0.00026439,3]
[356116342,1741909977493,-568.45,0.00026439,3]
[356116343,1741909977503,-500.0,0.00026439,3]
[356116344,1741909977513,-1007.44,0.00026439,3]
[356116345,1741909977522,-500.0,0.00026439,3]
[356116346,1741909977532,-596.06,0.00026439,3]
[356116347,1741909977541,-500.0,0.00026439,3]
[356116348,1741909977552,-500.0,0.00026439,3]
[356116349,1741909977562,-1472.58,0.00026439,3]
[356116350,1741909977571,-575.02,0.00026439,3]
[356116351,1741909977580,-500.0,0.00026439,3]
[356116352,1741909977590,-1336.48,0.00026439,3]
[356116353,1741909977599,-500.0,0.00026439,3]
[356116354,1741909977609,-500.0,0.00026439,3]
[356116355,1741909977618,-500.0,0.00026439,3]
[356116356,1741909977627,-1207.46,0.00026439,3]
[356116357,1741909977638,-500.0,0.00026439,3]
[356116358,1741909977648,-1240.71,0.00026439,3]
[356116359,1741909977657,-614.09,0.00026439,3]
[356116360,1741909977667,-1905.32,0.00026439,3]
[356116361,1741909977677,-500.0,0.00026439,3]
[356116362,1741909977687,-1560.68,0.00026439,3]
[356116363,1741909977696,-500.0,0.00026439,3]
[356116364,1741909977706,-500.0,0.00026439,3]
[356116365,1741909977717,-500.0,0.00026439,3]
[356116366,1741909977726,-500.0,0.00026439,3]
[356116367,1741909977736,-500.0,0.00026439,3]
[356116368,1741909977746,-1715.23,0.00026439,3]
[356116369,1741909977756,-505.01,0.00026439,3]
[356116370,1741909977765,-500.0,0.00026439,3]
[356116371,1741909977774,-1834.44,0.00026439,3]
[356116372,1741909977784,-500.0,0.00026439,3]
[356116373,1741909977793,-500.0,0.00026439,3]
[356116374,1741909977802,-500.0,0.00026439,3]
[356116375,1741909977811,-500.0,0.00026439,3]
[356116376,1741909977821,-500.0,0.00026439,3]
[356116377,1741909977830,-866.31,0.00026439,3]
[356116378,1741909977839,-1115.1,0.00026439,3]
[356116379,1741909977848,-528.68,0.00026439,3]
[356116380,1741909977857,-500.0,0.00026439,3]
[356116381,1741909977866,-500.0,0.00026439,3]
[356116382,1741909977876,-1673.6,0.00026439,3]
[356116383,1741909977885,-1282.18,0.00026439,3]
[356116384,1741909977895,-500.0,0.00026439,3]
[356116385,1741909977904,-1557.42,0.00026439,3]
[356116386,1741909977913,-521.16,0.00026439,3]
[356116387,1741909977922,-512.73,0.00026439,3]